[Event "4NCL Div 1 2024-25"]
[Site "England"]
[Date "2025.01.26"]
[Round "4.48"]
[White "Pollack, Oscar"]
[Black "Regan, Natasha K"]
[Result "0-1"]
[Annotator "TA"]
[ECO "C45"]
[WhiteElo "2030"]
[BlackElo "2035"]
[PlyCount "98"]
[EventDate "2024.11.23"]
[EventType "team-tourn"]
[EventCountry "ENG"]
[SourceTitle "playchess.com"]
[Source "ChessBase"]
[SourceQuality "1"]
[TimeControl "40/6000+30:3000+30"]

{[%evp 12,98,85,85,104,68,73,66,66,42,94,57,66,54,62,37,88,77,87,77,72,-25,66,55,100,75,89,71,119,112,135,92,154,157,142,79,129,120,215,223,187,29,123,-89,-83,-92,-90,-122,-145,-135,-124,-381,-379,-406,-334,-824,-819,-813,-796,-773,-267,-268,-273,-260,-265,-269,-260,-246,-241,-305,-292,-285,-276,-283,-278,-281,-285,-286,-271,-290,-280,-321,-314,-408,-408,-399,-399,-391,-330]} 1. e4 {[%emt 0:12:15]} e5 {[%emt 0:10:13]} 2. Nf3 {[%emt 0:00:21]} Nc6 {[%emt 0:00:10]} 3. d4 {[%emt 0:00:33]} exd4 {[%emt 0:00:26]} 4. Nxd4 {[%emt 0:00:03]} Nxd4 {[%emt 0:01:55]} 5. Qxd4 {[%emt 0:00:05]} Ne7 {[%emt 0:00:09][%cal Bg8e7,Be7c6,Bc6b4,Bb4d3][%mdl 32]} 6. Nc3 {[%emt 0:02:48]} Nc6 {[%emt 0:01:20]} 7. Qe3 {[%emt 0:03:13]} b6 {[%emt 0:01:44] C45: Scotch Game.} 8. Qg3 {[%emt 0:05:54]} Nb4 {[%emt 0:09:06]} 9. Bd3 {[%emt 0:03:33]} Nxd3+ {[%emt 0:05:26] White is slightly better.} 10. cxd3 {[%emt 0:00:14]} Ba6 {[%emt 0:00:39]} (10... c6 $14) 11. Nd5 $146 {[%emt 0:07:26]} (11. O-O c6 12. Re1 Qf6 13. Nd5 cxd5 14. exd5+ Be7 15. Bg5 Qg6 16. Rxe7+ Kf8 17. Rae1 {1-0 Bellaiche,A (2225)-Gelis,D FRA-chT 0001 U18 2000 (2)}) 11... d6 {[%emt 0:02:26]} 12. Bg5 {[%emt 0:04:08]} f6 {[%emt 0:03:44]} 13. Rc1 {[%emt 0:03:06]} Rc8 {[%emt 0:03:05]} (13... c6 $14 14. Nb4 (14. Rxc6 Bb7 $11) 14... Bb7) 14. Bd2 $36 {[%emt 0:21:40][%mdl 2048] White is really pushing.} c6 {[%emt 0:05:28]} 15. Nf4 {[%emt 0:04:46]} Qd7 {[%emt 0:07:07]} 16. Bc3 {[%emt 0:03:15]} (16. O-O $16) 16... Kf7 {[%emt 0:04:03]} (16... d5 $11) 17. O-O $14 {[%emt 0:05:30]} g6 {[%emt 0:03:22]} 18. h4 {[%emt 0:02:57][%cal Bh2h4,Bh4h5][%mdl 32]} Bh6 {[%emt 0:01:47]} 19. Qf3 {[%emt 0:02:01][%cal Of4g6]} Bg7 {[%emt 0:20:35]} (19... Rhf8 $142) 20. h5 $16 {[%emt 0:04:21][%cal Oh5h6]} g5 {[%emt 0:07:20]} 21. h6 {[%emt 0:02:20]} g4 {[%emt 0:02:22]} ({Black should try} 21... gxf4 22. hxg7 Rhg8 23. Qxf4 Qe6) 22. Qg3 $1 {[%emt 0:05:35]} Bxh6 {[%emt 0:03:14]} 23. f3 {[%emt 0:00:50]} ({White should play} 23. Rce1 Rcf8 24. f3 Bxf4 25. Qxf4) 23... Rcg8 {[%emt 0:05:53]} (23... Rhg8 $142) 24. Qh4 $1 {[%emt 0:01:13]} Bg5 {[%emt 0:00:37]} (24... Bxf4 $16 25. Qxf6+ Ke8 26. Qxf4 Rf8) 25. Qh5+ $18 {[%emt 0:00:35]} (25. Qxg4 Qxg4 26. fxg4 Bc8 $15) 25... Ke7 {[%emt 0:00:35] [#]} 26. fxg4 $2 {[%emt 0:02:13]} (26. Qxg4 h5 27. Qg3 Kd8 $15) (26. Nd5+ $1 $18 cxd5 27. f4) 26... Bc8 {[%emt 0:00:18] [#]} (26... Qe8 $11 {keeps the balance.}) 27. Rce1 $2 {[%emt 0:03:44]} (27. Nh3 $1 $16 {[%cal Rh3g5] and life is bright. Threatens to win with Nxg5.} Qxg4 28. Qxg4 Be3+ 29. Kh2 Bxg4 30. Rce1) 27... Qxg4 $17 {[%emt 0:00:42]} 28. Qh2 {[%emt 0:01:02]} h5 {[%emt 0:01:49]} 29. Nh3 {[%emt 0:01:46]} Bh4 {[%emt 0:01:07][%csl LRe1,LRh3] Dancing on a razor blade.} 30. Re3 {[%emt 0:01:46]} ({But not} 30. Rf4 $2 Bg3 (30... Qxh3 31. Qxh3 Bxh3 32. Rxh4 $17) 31. Bxf6+ Ke8 32. Rxg4 Bxh2+ 33. Kxh2 hxg4 34. Bxh8 Rxh8 $19) 30... Rh6 {[%emt 0:01:24]} 31. Nf2 $2 {[%emt 0:01:21][%mdl 8192]} (31. Rff3 $17) 31... Qg5 $19 {[%emt 0:02:15]} 32. e5 {[%emt 0:01:37]} dxe5 {[%emt 0:01:30]} 33. Bxe5 $2 {[%emt 0:03:06]} (33. Bd2 Rhg6 34. Rxe5+ Qxe5 35. Re1) 33... Qxe3 {[%emt 0:01:28]} 34. Bd6+ {[%emt 0:01:11]} Kd7 {[%emt 0:00:45][%cal Oh6g6]} 35. Bf4 {[%emt 0:00:26]} Bg3 $2 {[%emt 0:02:27]} (35... Bxf2+ 36. Rxf2 Qe1+ (36... Qxd3 $2 37. Bxh6 Qd1+ 38. Rf1 $19) 37. Rf1 $15) (35... Rxg2+ 36. Qxg2 Qxf4) 36. Qh3+ {[%emt 0:00:39]} Qe6 {[%emt 0:00:55]} 37. Qxe6+ {[%emt 0:00:18]} Kxe6 {[%emt 0:00:07]} 38. Bxh6 {[%emt 0:00:02]} Be5 {[%emt 0:01:10][%cal Oc8b7]} 39. Re1 {[%emt 0:01:06]} Kd5 {[%emt 0:00:28]} 40. Re2 {[%emt 0:00:57]} h4 {[%emt 0:00:29]} 41. Kf1 {[%emt 0:22:51]} Bf5 {[%emt 0:24:06] Wards off Re4} 42. Bc1 {[%emt 0:02:09]} Rg3 {[%emt 0:01:49]} 43. Be3 {[%emt 0:03:49]} c5 {[%emt 0:00:56]} 44. Ne4 {[%emt 0:01:14]} Rg8 {[%emt 0:03:38][%cal Oc5c4]} ({Much less strong is} 44... Bxe4 45. dxe4+ Kc4 (45... Kxe4 46. Bf2+ Kd3 47. Bxg3 $15) 46. Bc1 $19) 45. Ke1 {[%emt 0:02:18]} a6 {[%emt 0:00:57]} 46. b3 {[%emt 0:00:43]} Rg4 {[%emt 0:03:41]} 47. Kf2 {[%emt 0:06:48]} Bxe4 {[%emt 0:02:53] Black is winning.} 48. dxe4+ {[%emt 0:00:03]} Rxe4 {[%emt 0:00:19] aiming for ...Bd4.} 49. Kf3 {[%emt 0:00:04]} Bd4 {[%emt 0:02:12] Black used his chance.   Weighted Error Value: White=0.52/Black=0.29 (precise)   Loses game:     	White=1     	---        Mistake:       	White=5     	Black=8      Inaccurate:     	White=4     	Black=1      OK:         	White=9     	Black=16     Best:        	White=2     	Black=3      Strong:       	White=1     	---} 0-1